[Event "Elite Hotels Open 2023"]
[Site "Elite Stadshotellet, Kungsgatan 6, Vaxjo, Sweden"]
[Date "2023.02.10"]
[Round "1.1"]
[White "Jonsson, Per-Ola"]
[Black "Galperin, Platon"]
[Result "0-1"]
[TimeControl "15 minutes + 5 seconds per move from move one (Round 1 - 4) / 90 minutes + 30 seconds per move from move one (Round 5 - 8)"]
[BlackTitle "GM"]
[WhiteFideId "1750410"]
[BlackFideId "14165414"]
[WhiteElo "1842"]
[BlackElo "2538"]

1. Nf3 {[%clk 00:15:06]} {[%emt 00:00:04]} Nf6 {[%clk 00:15:07]} {[%emt
00:00:03]} 2. c4 {[%clk 00:15:08]} {[%emt 00:00:03]} g6 {[%clk 00:15:09]}
{[%emt 00:00:03]} 3. Nc3 {[%clk 00:15:10]} {[%emt 00:00:03]} Bg7 {[%clk
00:15:12]} {[%emt 00:00:02]} 4. g3 {[%clk 00:15:13]} {[%emt 00:00:02]} O-O
{[%clk 00:15:14]} {[%emt 00:00:03]} 5. Bg2 {[%clk 00:15:16]} {[%emt 00:00:02]}
d6 {[%clk 00:15:17]} {[%emt 00:00:03]} 6. O-O {[%clk 00:15:17]} {[%emt
00:00:04]} Re8 {[%clk 00:15:19]} {[%emt 00:00:03]} 7. d4 {[%clk 00:14:45]}
{[%emt 00:00:36]} Bd7 {[%clk 00:15:21]} {[%emt 00:00:04]} 8. Bg5 {[%clk
00:14:17]} {[%emt 00:00:31]} h6 {[%clk 00:15:24]} {[%emt 00:00:03]} 9. Bxf6
{[%clk 00:13:54]} {[%emt 00:00:28]} Bxf6 {[%clk 00:15:23]} {[%emt 00:00:07]} 10.
Qd2 {[%clk 00:13:48]} {[%emt 00:00:09]} Bg7 {[%clk 00:15:22]} {[%emt 00:00:07]}
11. Rfe1 {[%clk 00:13:42]} {[%emt 00:00:11]} Qc8 {[%clk 00:15:02]} {[%emt
00:00:25]} 12. e4 {[%clk 00:12:52]} {[%emt 00:00:55]} Bg4 {[%clk 00:15:04]}
{[%emt 00:00:03]} 13. e5 {[%clk 00:11:58]} {[%emt 00:01:00]} Nc6 {[%clk
00:15:00]} {[%emt 00:00:09]} 14. exd6 {[%clk 00:11:46]} {[%emt 00:00:16]} Bxf3
{[%clk 00:13:52]} {[%emt 00:01:13]} 15. Bxf3 {[%clk 00:11:48]} {[%emt
00:00:03]} Nxd4 {[%clk 00:13:54]} {[%emt 00:00:04]} 16. Bg2 {[%clk 00:11:21]}
{[%emt 00:00:31]} cxd6 {[%clk 00:13:54]} {[%emt 00:00:05]} 17. b3 {[%clk
00:10:25]} {[%emt 00:01:01]} Rb8 {[%clk 00:13:14]} {[%emt 00:00:45]} 18. Rac1
{[%clk 00:10:21]} {[%emt 00:00:09]} Qf5 {[%clk 00:13:14]} {[%emt 00:00:05]} 19.
f4 {[%clk 00:08:36]} {[%emt 00:01:50]} Qa5 {[%clk 00:12:52]} {[%emt 00:00:27]}
20. Ne4 {[%clk 00:07:38]} {[%emt 00:01:03]} Qxd2 {[%clk 00:12:39]} {[%emt
00:00:19]} 21. Nxd2 {[%clk 00:07:40]} {[%emt 00:00:02]} Kf8 {[%clk 00:12:40]}
{[%emt 00:00:03]} 22. Nf3 {[%emt 00:00:40]} Ne6 {[%clk 00:12:12]} {[%emt
00:00:26]} 23. Rcd1 {[%clk 00:06:55]} {[%emt 00:00:23]} Nc5 {[%clk 00:11:43]}
{[%emt 00:00:34]} 24. f5 {[%clk 00:05:50]} {[%emt 00:01:10]} gxf5 {[%clk
00:11:32]} {[%emt 00:00:16]} 25. Nd4 {[%clk 00:05:21]} {[%emt 00:00:33]} Bxd4+
{[%clk 00:11:12]} {[%emt 00:00:26]} 26. Rxd4 {[%clk 00:05:23]} {[%emt
00:00:03]} Red8 {[%clk 00:11:05]} {[%emt 00:00:13]} 27. Red1 {[%clk 00:05:07]}
{[%emt 00:00:20]} Ne6 {[%clk 00:10:18]} {[%emt 00:00:52]} 28. Rd5 {[%clk
00:04:32]} {[%emt 00:00:40]} f4 {[%clk 00:10:21]} {[%emt 00:00:02]} 29. Bh3
{[%clk 00:03:22]} {[%emt 00:01:14]} fxg3 {[%clk 00:10:02]} {[%emt 00:00:25]} 30.
Bxe6 {[%clk 00:03:19]} {[%emt 00:00:08]} gxh2+ {[%clk 00:10:03]} {[%emt
00:00:04]} 31. Kxh2 {[%clk 00:03:23]} fxe6 {[%clk 00:10:05]} {[%emt 00:00:03]}
32. Rf1+ {[%clk 00:03:21]} {[%emt 00:00:07]} Kg7 {[%clk 00:10:07]} {[%emt
00:00:03]} 33. Rd2 {[%clk 00:02:54]} {[%emt 00:00:31]} Rf8 {[%clk 00:10:03]}
{[%emt 00:00:10]} 34. Rg2+ {[%clk 00:02:56]} {[%emt 00:00:03]} Kh7 {[%clk
00:10:06]} {[%emt 00:00:02]} 35. Re1 {[%clk 00:03:00]} Rf6 {[%clk 00:10:01]}
{[%emt 00:00:10]} 36. Rge2 {[%clk 00:02:58]} {[%emt 00:00:08]} e5 {[%clk
00:10:04]} {[%emt 00:00:02]} 37. c5 {[%clk 00:02:57]} {[%emt 00:00:06]} Rbf8
{[%clk 00:10:06]} {[%emt 00:00:02]} 38. cxd6 {[%clk 00:02:59]} {[%emt
00:00:04]} exd6 {[%clk 00:10:09]} {[%emt 00:00:02]} 39. Rc1 {[%clk 00:02:54]}
{[%emt 00:00:08]} Rf2+ {[%clk 00:10:11]} {[%emt 00:00:04]} 40. Rxf2 {[%clk
00:02:58]} {[%emt 00:00:01]} Rxf2+ {[%clk 00:10:14]} {[%emt 00:00:03]} 41. Kg3
{[%clk 00:03:00]} {[%emt 00:00:02]} Rxa2 {[%clk 00:09:56]} {[%emt 00:00:24]} 42.
Rc7+ {[%clk 00:03:03]} {[%emt 00:00:01]} Kg6 {[%clk 00:09:59]} {[%emt
00:00:01]} 43. Rxb7 {[%clk 00:03:06]} {[%emt 00:00:03]} Kf5 {[%clk 00:10:00]}
{[%emt 00:00:03]} 44. Rh7 {[%clk 00:02:59]} {[%emt 00:00:10]} Ra3 {[%clk
00:10:01]} {[%emt 00:00:07]} 0-1

[Event "Elite Hotels Open 2023"]
[Site "Elite Stadshotellet, Kungsgatan 6, Vaxjo, Sweden"]
[Date "2023.02.10"]
[Round "1.2"]
[White "Sivuk, Vitaly"]
[Black "Hedin, Niclas"]
[Result "1-0"]
[TimeControl "15 minutes + 5 seconds per move from move one (Round 1 - 4) / 90 minutes + 30 seconds per move from move one (Round 5 - 8)"]
[WhiteTitle "GM"]
[WhiteFideId "14116502"]
[BlackFideId "1720708"]
[WhiteElo "2530"]
[BlackElo "1833"]

1. d4 {[%clk 00:15:06]} {[%emt 00:00:03]} d5 {[%clk 00:15:07]} {[%emt
00:00:03]} 2. c4 {[%clk 00:15:09]} {[%emt 00:00:02]} c6 {[%clk 00:15:11]}
{[%emt 00:00:02]} 3. Nf3 {[%clk 00:15:11]} {[%emt 00:00:02]} Nf6 {[%clk
00:15:14]} {[%emt 00:00:02]} 4. Nc3 {[%clk 00:15:14]} {[%emt 00:00:03]} e6
{[%clk 00:15:16]} {[%emt 00:00:03]} 5. Bg5 {[%clk 00:15:15]} {[%emt 00:00:02]}
Nbd7 {[%clk 00:15:18]} {[%emt 00:00:04]} 6. e3 {[%clk 00:15:18]} {[%emt
00:00:02]} Qa5 {[%clk 00:15:20]} {[%emt 00:00:04]} 7. Nd2 {[%clk 00:15:18]}
{[%emt 00:00:05]} Bb4 {[%clk 00:13:51]} {[%emt 00:01:33]} 8. Qc2 {[%clk
00:15:20]} {[%emt 00:00:03]} O-O {[%clk 00:13:21]} {[%emt 00:00:35]} 9. a3
{[%clk 00:15:04]} {[%emt 00:00:21]} Bxc3 {[%clk 00:12:51]} {[%emt 00:00:36]} 10.
Qxc3 {[%clk 00:15:04]} {[%emt 00:00:04]} Qxc3 11. bxc3 {[%clk 00:15:07]} b6
{[%clk 00:11:46]} {[%emt 00:01:03]} 12. a4 {[%clk 00:14:56]} {[%emt 00:00:16]}
Bb7 {[%clk 00:11:30]} {[%emt 00:00:21]} 13. a5 {[%clk 00:14:51]} {[%emt
00:00:10]} c5 {[%clk 00:11:32]} {[%emt 00:00:04]} 14. f3 {[%clk 00:14:46]}
{[%emt 00:00:08]} Rfe8 {[%clk 00:11:19]} {[%emt 00:00:17]} 15. cxd5 {[%clk
00:13:32]} {[%emt 00:01:20]} exd5 {[%clk 00:10:47]} {[%emt 00:00:37]} 16. Bb5
{[%clk 00:12:35]} {[%emt 00:01:02]} Re6 {[%clk 00:10:25]} {[%emt 00:00:27]} 17.
Kf2 {[%clk 00:12:25]} {[%emt 00:00:15]} h6 {[%clk 00:10:13]} {[%emt 00:00:17]}
18. Bf4 {[%clk 00:12:20]} {[%emt 00:00:09]} a6 {[%clk 00:07:34]} {[%emt
00:02:45]} 19. Bd3 {[%clk 00:12:05]} {[%emt 00:00:19]} c4 {[%clk 00:07:24]}
{[%emt 00:00:16]} 20. Bf5 {[%clk 00:12:04]} {[%emt 00:00:05]} Ree8 {[%clk
00:04:59]} {[%emt 00:02:31]} 21. axb6 {[%clk 00:12:05]} {[%emt 00:00:05]} Nf8
{[%clk 00:04:34]} {[%emt 00:00:29]} 22. g4 {[%clk 00:11:51]} {[%emt 00:00:18]}
Ne6 {[%clk 00:04:04]} {[%emt 00:00:36]} 23. Bg3 {[%clk 00:11:41]} {[%emt
00:00:15]} g6 {[%clk 00:04:06]} {[%emt 00:00:03]} 24. Bc2 {[%clk 00:11:36]}
{[%emt 00:00:10]} h5 {[%clk 00:03:11]} {[%emt 00:01:01]} 25. h3 {[%clk
00:11:35]} {[%emt 00:00:05]} hxg4 {[%clk 00:02:46]} {[%emt 00:00:31]} 26. hxg4
{[%clk 00:11:38]} {[%emt 00:00:02]} Kg7 {[%clk 00:02:49]} {[%emt 00:00:01]} 27.
Be5 {[%clk 00:11:37]} {[%emt 00:00:06]} Rh8 {[%clk 00:02:49]} {[%emt 00:00:06]}
28. f4 {[%clk 00:11:24]} {[%emt 00:00:17]} g5 {[%clk 00:02:50]} {[%emt
00:00:05]} 29. Nf3 {[%clk 00:11:17]} {[%emt 00:00:11]} 1-0

[Event "Elite Hotels Open 2023"]
[Site "Elite Stadshotellet, Kungsgatan 6, Vaxjo, Sweden"]
[Date "2023.02.10"]
[Round "1.3"]
[White "Soderberg, Kevin"]
[Black "Abdrlauf, Elham"]
[Result "0-1"]
[TimeControl "15 minutes + 5 seconds per move from move one (Round 1 - 4) / 90 minutes + 30 seconds per move from move one (Round 5 - 8)"]
[BlackTitle "IM"]
[WhiteFideId "1719726"]
[BlackFideId "1533533"]
[WhiteElo "1832"]
[BlackElo "2527"]

1. c4 {[%emt 00:00:05]} e6 {[%clk 00:15:08]} {[%emt 00:00:02]} 2. Nf3 {[%clk
00:14:54]} {[%emt 00:00:16]} d5 {[%clk 00:15:12]} 3. d4 {[%clk 00:14:57]}
{[%emt 00:00:03]} Nf6 {[%clk 00:15:14]} {[%emt 00:00:02]} 4. g3 {[%clk
00:15:00]} {[%emt 00:00:02]} dxc4 {[%clk 00:15:13]} {[%emt 00:00:06]} 5. Bg2
{[%clk 00:14:58]} {[%emt 00:00:07]} Nc6 {[%clk 00:14:51]} {[%emt 00:00:28]} 6.
O-O {[%clk 00:14:55]} {[%emt 00:00:08]} Rb8 {[%clk 00:13:56]} {[%emt 00:01:00]}
7. a4 {[%clk 00:12:55]} {[%emt 00:02:04]} a6 {[%clk 00:12:59]} {[%emt
00:01:02]} 8. e3 {[%clk 00:08:47]} {[%emt 00:04:13]} Be7 {[%clk 00:11:47]}
{[%emt 00:01:17]} 9. Nbd2 {[%clk 00:07:01]} {[%emt 00:01:52]} b5 {[%clk
00:11:37]} {[%emt 00:00:15]} 10. Ne5 {[%clk 00:05:32]} {[%emt 00:01:34]} Nxe5
{[%clk 00:11:29]} {[%emt 00:00:13]} 11. dxe5 {[%clk 00:05:34]} {[%emt
00:00:02]} Nd7 {[%clk 00:10:58]} {[%emt 00:00:36]} 12. Nf3 {[%clk 00:05:19]}
{[%emt 00:00:21]} O-O {[%clk 00:10:38]} {[%emt 00:00:24]} 13. Qc2 {[%clk
00:04:47]} {[%emt 00:00:38]} Bb7 {[%clk 00:10:13]} {[%emt 00:00:30]} 14. Nd4
{[%clk 00:04:35]} {[%emt 00:00:17]} Bxg2 {[%clk 00:10:13]} {[%emt 00:00:04]} 15.
Kxg2 {[%clk 00:04:39]} {[%emt 00:00:03]} Nxe5 {[%clk 00:10:14]} {[%emt
00:00:03]} 16. Rd1 {[%clk 00:03:07]} {[%emt 00:01:36]} Nd3 {[%clk 00:10:04]}
{[%emt 00:00:15]} 17. b3 {[%clk 00:02:57]} {[%emt 00:00:16]} Qd5+ {[%clk
00:09:53]} {[%emt 00:00:16]} 18. Kg1 {[%clk 00:02:51]} {[%emt 00:00:11]} Bf6
{[%clk 00:09:34]} {[%emt 00:00:24]} 19. Bb2 {[%clk 00:01:32]} {[%emt 00:01:24]}
Nxb2 {[%clk 00:09:28]} {[%emt 00:00:11]} 20. Qxb2 {[%clk 00:01:31]} {[%emt
00:00:06]} c5 {[%clk 00:09:31]} {[%emt 00:00:02]} 0-1

[Event "Elite Hotels Open 2023"]
[Site "Elite Stadshotellet, Kungsgatan 6, Vaxjo, Sweden"]
[Date "2023.02.10"]
[Round "1.4"]
[White "Hillarp, Tiger"]
[Black "Malm, Simon"]
[Result "1-0"]
[TimeControl "15 minutes + 5 seconds per move from move one (Round 1 - 4) / 90 minutes + 30 seconds per move from move one (Round 5 - 8)"]
[WhiteTitle "GM"]
[WhiteFideId "1700812"]
[BlackFideId "1759825"]
[WhiteElo "2511"]
[BlackElo "1832"]

1. Nf3 {[%clk 00:15:06]} {[%emt 00:00:04]} Nf6 {[%clk 00:15:07]} {[%emt
00:00:03]} 2. c4 {[%clk 00:15:09]} {[%emt 00:00:02]} e6 {[%clk 00:15:02]}
{[%emt 00:00:10]} 3. g3 {[%clk 00:15:12]} {[%emt 00:00:02]} d5 {[%clk
00:14:58]} {[%emt 00:00:09]} 4. Bg2 {[%clk 00:15:15]} {[%emt 00:00:02]} c6
{[%clk 00:14:35]} {[%emt 00:00:28]} 5. b3 {[%clk 00:13:52]} {[%emt 00:01:28]}
Be7 {[%clk 00:14:16]} {[%emt 00:00:24]} 6. O-O {[%clk 00:13:54]} {[%emt
00:00:03]} O-O {[%clk 00:14:16]} {[%emt 00:00:05]} 7. Bb2 {[%clk 00:13:46]}
{[%emt 00:00:14]} Nbd7 {[%clk 00:14:18]} {[%emt 00:00:02]} 8. e3 {[%clk
00:13:17]} {[%emt 00:00:34]} b6 {[%clk 00:13:43]} {[%emt 00:00:41]} 9. Nc3
{[%clk 00:13:04]} {[%emt 00:00:17]} Ba6 {[%clk 00:13:34]} {[%emt 00:00:15]} 10.
d3 {[%clk 00:12:55]} {[%emt 00:00:13]} Rc8 {[%clk 00:13:28]} {[%emt 00:00:12]}
11. Qe2 {[%clk 00:12:45]} {[%emt 00:00:14]} Re8 {[%clk 00:12:53]} {[%emt
00:00:40]} 12. Rfd1 {[%clk 00:12:29]} {[%emt 00:00:21]} c5 {[%clk 00:12:11]}
{[%emt 00:00:47]} 13. e4 {[%clk 00:11:43]} {[%emt 00:00:51]} d4 {[%clk
00:11:28]} {[%emt 00:00:49]} 14. Nb5 {[%clk 00:11:43]} {[%emt 00:00:04]} Bxb5
{[%clk 00:11:08]} {[%emt 00:00:26]} 15. cxb5 {[%clk 00:11:46]} {[%emt
00:00:02]} e5 {[%clk 00:11:09]} {[%emt 00:00:04]} 16. Nd2 {[%clk 00:11:49]}
{[%emt 00:00:01]} Bd6 {[%clk 00:10:52]} {[%emt 00:00:22]} 17. Nc4 {[%clk
00:11:51]} {[%emt 00:00:02]} Bb8 {[%clk 00:10:39]} {[%emt 00:00:18]} 18. Bh3
{[%clk 00:11:54]} {[%emt 00:00:03]} Qe7 {[%clk 00:10:13]} {[%emt 00:00:32]} 19.
a4 {[%clk 00:11:57]} {[%emt 00:00:02]} Rcd8 {[%clk 00:08:47]} {[%emt 00:01:31]}
20. Bc1 {[%clk 00:12:00]} {[%emt 00:00:01]} Nf8 {[%clk 00:08:34]} {[%emt
00:00:18]} 21. a5 {[%clk 00:11:29]} {[%emt 00:00:36]} bxa5 {[%clk 00:08:00]}
{[%emt 00:00:40]} 22. Rxa5 {[%clk 00:11:32]} {[%emt 00:00:01]} Qb7 {[%clk
00:07:57]} {[%emt 00:00:09]} 23. Qa2 {[%clk 00:11:36]} {[%emt 00:00:01]} Ne6
{[%clk 00:07:40]} {[%emt 00:00:22]} 24. Bd2 {[%clk 00:11:02]} {[%emt 00:00:37]}
Nd7 {[%clk 00:06:38]} {[%emt 00:01:07]} 25. Ra1 {[%clk 00:09:55]} {[%emt
00:01:13]} Re7 {[%clk 00:06:38]} {[%emt 00:00:06]} 26. b4 {[%clk 00:09:21]}
{[%emt 00:00:39]} Nb6 {[%clk 00:03:12]} {[%emt 00:03:31]} 27. Bxe6 {[%clk
00:09:16]} {[%emt 00:00:09]} Rxe6 {[%clk 00:03:02]} {[%emt 00:00:14]} 28. bxc5
{[%clk 00:09:18]} {[%emt 00:00:03]} Nxc4 {[%clk 00:02:04]} {[%emt 00:01:04]} 29.
Qxc4 {[%clk 00:09:21]} {[%emt 00:00:02]} h6 {[%clk 00:01:40]} {[%emt 00:00:29]}
30. Ra6 {[%clk 00:08:57]} {[%emt 00:00:28]} Re7 {[%clk 00:01:23]} {[%emt
00:00:23]} 31. c6 {[%clk 00:08:47]} {[%emt 00:00:15]} Qc8 {[%clk 00:01:14]}
{[%emt 00:00:14]} 32. Bb4 {[%clk 00:08:50]} {[%emt 00:00:02]} Re6 {[%clk
00:00:46]} {[%emt 00:00:33]} 33. Ba5 {[%clk 00:08:12]} {[%emt 00:00:43]} Rdd6
{[%clk 00:00:13]} {[%emt 00:00:39]} 34. c7 {[%clk 00:07:54]} {[%emt 00:00:22]}
Rxa6 {[%clk 00:00:07]} {[%emt 00:00:12]} 35. bxa6 {[%clk 00:07:23]} {[%emt
00:00:37]} Bxc7 {[%clk 00:00:08]} {[%emt 00:00:03]} 36. Bxc7 {[%clk 00:07:12]}
{[%emt 00:00:15]} Qd7 {[%clk 00:00:12]} {[%emt 00:00:02]} 37. Rc1 {[%clk
00:07:04]} {[%emt 00:00:12]} Qe7 {[%clk 00:00:15]} {[%emt 00:00:02]} 38. Qc5
{[%clk 00:06:28]} {[%emt 00:00:41]} Qg5 {[%clk 00:00:14]} {[%emt 00:00:06]} 39.
h4 {[%clk 00:05:09]} {[%emt 00:01:24]} Qd2 {[%clk 00:00:17]} {[%emt 00:00:03]}
40. Qc2 {[%clk 00:05:11]} {[%emt 00:00:02]} Qb4 {[%clk 00:00:11]} {[%emt
00:00:12]} 41. Kg2 {[%clk 00:04:13]} {[%emt 00:01:02]} Rxa6 {[%clk 00:00:08]}
{[%emt 00:00:09]} 42. Bxe5 {[%clk 00:04:16]} Re6 {[%clk 00:00:10]} {[%emt
00:00:04]} 43. Bf4 {[%clk 00:04:15]} {[%emt 00:00:06]} a5 {[%clk 00:00:11]}
{[%emt 00:00:03]} 44. Qc4 {[%clk 00:04:18]} {[%emt 00:00:02]} Qb2 {[%clk
00:00:14]} {[%emt 00:00:03]} 45. Rc2 {[%clk 00:04:07]} {[%emt 00:00:15]} Qb1
{[%clk 00:00:16]} {[%emt 00:00:03]} 46. Ra2 {[%clk 00:04:06]} {[%emt 00:00:06]}
Rc6 {[%clk 00:00:12]} {[%emt 00:00:10]} 47. Qxc6 {[%clk 00:04:03]} {[%emt
00:00:07]} Qxa2 {[%clk 00:00:15]} {[%emt 00:00:02]} 48. Be5 {[%clk 00:03:55]}
{[%emt 00:00:13]} Qb3 {[%clk 00:00:16]} {[%emt 00:00:05]} 49. Qc4 {[%clk
00:03:43]} {[%emt 00:00:16]} Qxc4 {[%clk 00:00:08]} {[%emt 00:00:13]} 50. dxc4
{[%clk 00:03:47]} {[%emt 00:00:02]} d3 {[%clk 00:00:12]} {[%emt 00:00:01]} 51.
Kf1 {[%clk 00:03:50]} {[%emt 00:00:01]} 1-0

[Event "Elite Hotels Open 2023"]
[Site "Elite Stadshotellet, Kungsgatan 6, Vaxjo, Sweden"]
[Date "2023.02.10"]
[Round "1.5"]
[White "Olsson, Thomas"]
[Black "Blomqvist, Erik"]
[Result "0-1"]
[TimeControl "15 minutes + 5 seconds per move from move one (Round 1 - 4) / 90 minutes + 30 seconds per move from move one (Round 5 - 8)"]
[BlackTitle "GM"]
[WhiteFideId "1702696"]
[BlackFideId "1709437"]
[WhiteElo "1830"]
[BlackElo "2510"]

1. e4 {[%clk 00:15:07]} {[%emt 00:00:02]} c5 {[%clk 00:15:08]} {[%emt
00:00:02]} 2. Nf3 {[%clk 00:15:08]} {[%emt 00:00:03]} e6 {[%clk 00:15:11]}
{[%emt 00:00:02]} 3. d4 {[%clk 00:15:04]} {[%emt 00:00:10]} cxd4 {[%clk
00:15:15]} {[%emt 00:00:01]} 4. Nxd4 {[%clk 00:15:07]} {[%emt 00:00:02]} Nc6
{[%clk 00:15:19]} {[%emt 00:00:02]} 5. Nc3 {[%clk 00:15:05]} {[%emt 00:00:06]}
Qc7 {[%clk 00:15:22]} {[%emt 00:00:02]} 6. Be2 {[%clk 00:14:58]} {[%emt
00:00:12]} Nf6 {[%clk 00:15:24]} {[%emt 00:00:04]} 7. O-O {[%clk 00:14:37]}
{[%emt 00:00:25]} Be7 {[%clk 00:15:22]} {[%emt 00:00:07]} 8. Kh1 {[%clk
00:14:29]} {[%emt 00:00:13]} O-O {[%clk 00:15:24]} {[%emt 00:00:04]} 9. f4
{[%clk 00:14:19]} {[%emt 00:00:15]} d6 {[%clk 00:15:27]} {[%emt 00:00:02]} 10.
Be3 {[%clk 00:13:54]} {[%emt 00:00:30]} Nxd4 {[%clk 00:15:29]} {[%emt
00:00:03]} 11. Bxd4 {[%clk 00:13:50]} {[%emt 00:00:09]} e5 {[%clk 00:15:29]}
{[%emt 00:00:05]} 12. Be3 {[%clk 00:13:43]} {[%emt 00:00:11]} a6 {[%clk
00:15:32]} {[%emt 00:00:02]} 13. a4 {[%clk 00:13:06]} {[%emt 00:00:43]} exf4
{[%clk 00:15:00]} {[%emt 00:00:37]} 14. Bxf4 {[%clk 00:13:06]} {[%emt
00:00:04]} Be6 {[%clk 00:15:02]} {[%emt 00:00:03]} 15. Bf3 {[%clk 00:12:21]}
{[%emt 00:00:51]} Rac8 {[%clk 00:14:50]} {[%emt 00:00:16]} 16. Rf2 {[%clk
00:11:40]} {[%emt 00:00:46]} Qb6 {[%clk 00:14:44]} {[%emt 00:00:12]} 17. Rd2
{[%clk 00:10:56]} {[%emt 00:00:48]} Qxb2 {[%clk 00:14:46]} {[%emt 00:00:03]} 18.
Nd5 {[%clk 00:10:49]} {[%emt 00:00:12]} Nxd5 {[%clk 00:13:35]} {[%emt
00:01:16]} 19. exd5 {[%clk 00:10:47]} {[%emt 00:00:07]} Bf5 {[%clk 00:13:39]}
{[%emt 00:00:02]} 20. Rb1 {[%clk 00:09:16]} {[%emt 00:01:36]} Qa3 {[%clk
00:13:03]} {[%emt 00:00:41]} 21. Rxb7 {[%clk 00:09:11]} {[%emt 00:00:10]} Rfe8
{[%clk 00:12:38]} {[%emt 00:00:29]} 22. Re2 {[%clk 00:07:54]} {[%emt 00:01:22]}
Qxa4 {[%clk 00:10:57]} {[%emt 00:01:46]} 23. Bg3 {[%clk 00:07:14]} {[%emt
00:00:44]} Bf8 {[%clk 00:09:59]} {[%emt 00:01:03]} 24. h3 {[%clk 00:04:31]}
{[%emt 00:02:49]} Bxc2 {[%clk 00:09:31]} {[%emt 00:00:34]} 25. Qe1 {[%clk
00:04:28]} {[%emt 00:00:07]} Bd3 {[%clk 00:09:12]} {[%emt 00:00:23]} 26. Rxe8
{[%clk 00:04:25]} {[%emt 00:00:09]} Rxe8 {[%clk 00:09:10]} {[%emt 00:00:08]} 27.
Qc3 {[%clk 00:04:03]} {[%emt 00:00:26]} Qc4 {[%clk 00:07:05]} {[%emt 00:02:10]}
28. Qa5 {[%clk 00:03:52]} {[%emt 00:00:16]} g6 {[%clk 00:06:29]} {[%emt
00:00:41]} 29. Rd7 {[%clk 00:03:34]} {[%emt 00:00:23]} Bh6 {[%clk 00:06:00]}
{[%emt 00:00:34]} 30. Rd8 {[%clk 00:03:18]} {[%emt 00:00:21]} Qb5 {[%clk
00:03:48]} {[%emt 00:02:17]} 31. Qc7 {[%clk 00:03:07]} {[%emt 00:00:16]} Bg5
{[%clk 00:03:30]} {[%emt 00:00:23]} 32. Rd7 {[%clk 00:02:55]} {[%emt 00:00:17]}
Be3 {[%clk 00:01:54]} {[%emt 00:01:41]} 33. Kh2 {[%clk 00:01:34]} {[%emt
00:01:26]} Qb1 {[%clk 00:01:50]} {[%emt 00:00:09]} 34. Bxd6 {[%clk 00:01:00]}
{[%emt 00:00:39]} Qg1+ {[%clk 00:01:50]} {[%emt 00:00:05]} 35. Kg3 {[%clk
00:01:00]} {[%emt 00:00:05]} Qe1+ {[%clk 00:01:52]} {[%emt 00:00:02]} 36. Kg4
{[%clk 00:00:57]} {[%emt 00:00:09]} h5# {[%clk 00:01:52]} {[%emt 00:00:05]} 0-1

[Event "Elite Hotels Open 2023"]
[Site "Elite Stadshotellet, Kungsgatan 6, Vaxjo, Sweden"]
[Date "2023.02.10"]
[Round "1.6"]
[White "Kucuksari, Kaan"]
[Black "Pinheiro Diamant, Jonatan"]
[Result "1-0"]
[TimeControl "15 minutes + 5 seconds per move from move one (Round 1 - 4) / 90 minutes + 30 seconds per move from move one (Round 5 - 8)"]
[WhiteTitle "IM"]
[WhiteFideId "6380166"]
[BlackFideId "1734628"]
[WhiteElo "2507"]
[BlackElo "1821"]

1. d4 {[%clk 00:15:09]} Nf6 {[%clk 00:15:08]} {[%emt 00:00:03]} 2. Bg5 {[%clk
00:15:11]} {[%emt 00:00:03]} d5 {[%clk 00:14:50]} {[%emt 00:00:22]} 3. Bxf6
{[%clk 00:15:14]} {[%emt 00:00:02]} gxf6 {[%clk 00:14:52]} {[%emt 00:00:04]} 4.
Nf3 {[%clk 00:15:16]} {[%emt 00:00:02]} e6 {[%clk 00:14:26]} {[%emt 00:00:32]}
5. e3 {[%clk 00:15:17]} {[%emt 00:00:04]} c5 {[%clk 00:13:57]} {[%emt
00:00:33]} 6. c4 {[%clk 00:15:10]} {[%emt 00:00:13]} Nc6 {[%clk 00:13:26]}
{[%emt 00:00:36]} 7. cxd5 {[%clk 00:15:08]} {[%emt 00:00:07]} Qxd5 {[%clk
00:12:55]} {[%emt 00:00:35]} 8. Nc3 {[%clk 00:15:11]} {[%emt 00:00:02]} Qd8
{[%clk 00:12:14]} {[%emt 00:00:45]} 9. d5 {[%clk 00:14:59]} {[%emt 00:00:18]}
Ne5 {[%clk 00:10:37]} {[%emt 00:01:42]} 10. Nxe5 {[%clk 00:14:57]} {[%emt
00:00:08]} fxe5 {[%clk 00:10:38]} {[%emt 00:00:04]} 11. Bb5+ {[%clk 00:15:00]}
{[%emt 00:00:01]} Ke7 {[%clk 00:09:14]} {[%emt 00:01:30]} 12. O-O {[%clk
00:15:03]} {[%emt 00:00:02]} a6 {[%clk 00:08:46]} {[%emt 00:00:33]} 13. Bc4
{[%clk 00:15:02]} {[%emt 00:00:05]} b5 {[%clk 00:08:29]} {[%emt 00:00:22]} 14.
Be2 {[%clk 00:15:06]} {[%emt 00:00:02]} Bb7 {[%clk 00:07:54]} {[%emt 00:00:40]}
15. Bf3 {[%clk 00:15:09]} {[%emt 00:00:02]} Rb8 {[%clk 00:07:21]} {[%emt
00:00:37]} 16. Rc1 {[%clk 00:14:04]} {[%emt 00:01:10]} f5 {[%clk 00:06:06]}
{[%emt 00:01:20]} 17. e4 {[%clk 00:13:15]} {[%emt 00:00:54]} b4 {[%clk
00:04:54]} {[%emt 00:01:17]} 18. Na4 {[%clk 00:11:45]} {[%emt 00:01:35]} exd5
{[%clk 00:04:01]} {[%emt 00:00:59]} 19. exd5 {[%clk 00:11:44]} {[%emt
00:00:06]} e4 {[%clk 00:03:58]} {[%emt 00:00:07]} 20. Nxc5 {[%clk 00:10:59]}
{[%emt 00:00:51]} Qxd5 {[%clk 00:02:59]} {[%emt 00:01:04]} 21. Qa4 {[%clk
00:11:01]} {[%emt 00:00:03]} Bh6 {[%clk 00:02:16]} {[%emt 00:00:48]} 22. Rfd1
{[%clk 00:10:51]} {[%emt 00:00:14]} Qc6 {[%clk 00:01:59]} {[%emt 00:00:22]} 23.
Rd7+ {[%clk 00:09:41]} {[%emt 00:01:15]} Kf6 {[%clk 00:01:19]} {[%emt
00:00:45]} 24. Nxe4+ {[%clk 00:09:32]} {[%emt 00:00:14]} 1-0